{"text_format":"1","workbook":"xlsx","n_sheets":1,"sheets":["Price bid "],"not_rendered":{"charts":0,"images":0,"macros":1,"external_links":1,"defined_names":1,"comments":0,"pivot_tables":0},"unopened":[],"bounds":{"document_bytes":16777216,"sheet_cells":100000,"rows_first":2000,"rows_last":500,"rows_between":2000,"halvings":0,"cell_chars":16384,"cell_head_chars":4096},"cells_cut":0,"cells_raw":0,"read":"whole","date_system":"1900"}

{"sheet":"Price bid ","index":0,"n_rows":26,"n_cols":9,"rows_kept":26,"cut":false,"hidden":false,"merged":[[21,1,21,8],[18,0,18,1],[18,2,18,8],[3,0,3,8],[0,0,0,8],[1,0,1,8],[2,0,2,8],[4,0,4,2],[20,1,20,8]]}
["    BHARAT HEAVY ELECTRICAL LIMITED , JHANSI              "]
["FACTORY CIVIL DEPARTMENT"]
["Price bid "]
["Name of work -Repair and maintenance of roof & side sheeting work of sheds  inside factory area."]
["Tender No. FCX/TW/24/04"]
["SL. Nos. ","Description   of work ","% Allocation (Item-wise)","Unit ","Qty ","Rate (Rs) ","Amount(Rs) ","Rate per Unit (in Rs.)","Amount (in Rs.)"]
[1,"Fixing Polycarbonate sheet/ AC sheet/ Galvalume sheet of matching profile at the roof top of manufacturing blocks and other structures including removal of existing old GS Sheet/ Galvalume Sheet/ AC sheet including removal of ridges, hips valley, gutters etc. and stacking the material at appropriate places as per instruction of engineer-in- charge. To avoid breakage of sheets, adjacent sheets will also be required to be removed /loosened and then fixed accordingly. For measurement, overlap between new and existing sheet will not be deducted and would be considered during calculation of area. Whereas, the overlap arising between new sheets would be deducted during calculation of area. \nThe above item comprises of all the activities required to replace the existing sheet with  Polycarbonate sheet/ AC sheet/ Galvalume sheet \n (All items shall be issued by BHEL free of cost)\n\n"]
["a","Replacement upto 7 mtr height",{"$f":"G8/1012102.11","v":8.4228825482199454E-2},"Sqm ",{"$f":"[1]measurment!F19","v":376},226.72386168445701,{"$f":"E8*F8","v":85248.171993355834},{"$f":"ROUND(I8/E8,4)","v":0},{"$f":"$I$18*C8","v":0}]
["b","Replacement above 7 mtr height",{"$f":"G9/1012102.11","v":8.6053985234709474E-2},"Sqm ",{"$f":"[1]measurment!F40","v":321},271.32529604348383,{"$f":"E9*F9","v":87095.420029958303},{"$f":"ROUND(I9/E9,4)","v":0},{"$f":"$I$18*C9","v":0}]
[2,"Replacing broken /defective Louver   (All items shall be issued by BHEL free of cost)",3.0076477589886315E-3,"Mtr",{"$f":"[1]measurment!F47","v":13},234.15743407762812,3044.0466430091656,0,0]
[3,"Cleaning of Roof Gutters in factory area at height any height  (All items shall be issued by BHEL  free of cost)",8.0864994984364058E-2,"Mtr",{"$f":"[1]measurment!F69","v":3670},22.300717179513427,81843.632048814281,0,0]
[4,"Repairing of downtake MS pipe/ joint for 100 mm, 150 mm dia pipe at different places inside factory premises (All items shall be issued by BHEL free of cost)",2.7542563707989406E-2,"Mtr",{"$f":"[1]measurment!F77","v":100},278.75886843665501,27875.886843665499,0,0]
[5,"Replacing of old gutter and/or fixing of new M.S. Gutter situated at different places inside factory premises.  (All items shall be issued by BHEL  free of cost)",4.8107669633025582E-2,"Mtr",{"$f":"[1]measurment!F89","v":131},371.67842704403142,48689.873942768114,0,0]
[6,"Inspection and maintenance of roof sheeting including filling of holes by bitumastic compound/bitumen washer /M seal etc. to stop the leakage of  roof from an area of 150 Sqm   . (All items shall be issued by BHEL  free of cost)",9.6215339266051164E-2,"Nos",{"$f":"[1]measurment!F120","v":524},185.83921352201571,97379.747885536228,0,0]
[7,"Fixing of wind tie as required at the top of the roof of various blocks as per the direction of Engineer - In - Charge (All items shall be issued by BHEL  free of cost)",2.8556139918184148E-2,"Kg",{"$f":"[1]measurment!F126","v":1296},22.30071717951343,28901.729464649405,0,0]
[8,"Providing and fixing fire retardant and  U.V. resistant profiled and solid transparent embossed polycarbonate sheet of minimum 3 mm thick of matching profile at the roof top of manufacturing blocks including:\n• Removal of existing old GS Sheet/ Galvalume Sheet including removal of ridges, hips valley, gutters etc. and stacking the material with 50 meters lead. To avoid breakage of sheets, adjacent sheets may also be required to be removed /loosened and then fixed accordingly.\n• Rates shall be inclusive of GI hooks, self-tapping screws or any other material required for fixing.\nFor measurement, overlap between new and existing sheet will not be deducted and would be considered during calculation of area. Whereas, the overlap arising between new sheets would be deducted during calculation of area. During dismantling, if adjacent AC sheet gets broken, it shall be provided free of cost from BHEL and the fixing & installation shall be done by contractor at his own cost. \n          The above item comprises of all the activities required to replace the existing sheet with  Polycarbonate Sheet.",0.29107170465642046,"Sqm ",{"$f":"[1]measurment!F135","v":181},1627.5927427848617,294594.28644405998,0,0]
[9,"Providing and fixing fiberglass reinforced plastic sheet 2 mm thick corrugated of matching profile at the roof top of manufacturing blocks including:\n• Removal of existing old GS Sheet/ AC sheet including removal of ridges, hips valley, gutters etc. and stacking the material with 50 meters lead. To avoid breakage of sheets, adjacent sheets may also be required to be removed /loosened and then fixed accordingly.\n• Rates shall be inclusive of GI hooks, self-tapping screws or any other material required for fixing.\nFor measurement, overlap between new and existing sheet will not be deducted and would be considered during calculation of area. Whereas, the overlap arising between new sheets would be deducted during calculation of area. During dismantling, if adjacent AC sheet gets broken, it shall be provided free of cost from BHEL and the fixing & installation shall be done by contractor at his own cost. \n          The above item comprises of all the activities required to replace the existing sheet with  FRP Sheet.",0.25435112836202944,"Sqm ",{"$f":"[1]measurment!F144","v":243},1059.3798917534602,257429.31369609083,0,0]
[null,"Total ",{"$f":"SUM(C8:C17)","v":0.99999999900396186},null,null,null,{"$f":"SUM(G8:G17)","v":1012102.1089919077},null,0]
["In words ",null,{"$f":"rup(I18)","v":0}]
[null,"Note -GST extra as applicable"]
[null,"1. Bidder has to quote in above unlocked cell (I-18) only. Item rate shall be calculated automatically. Calculated item rates upto four  decimal points may be adjusted w.r.t. gross total amount and it shall be the itemwise final rate for  execution of contract and all other purposes."]
[null,"2. Quoted gross total amount should be considered only if quoted in this excel sheet and print out of this should only be considered for evaluation.  If Price is quoted in any other format other than the Excel Sheet enclosed to the NIT , the offer of the bidder  will be rejected."]
[]
[]
[]
[null,null,null,null,"(Signature and Seal of  Contractor  )"]